lending/lending_fUSD_20250621
["ID","MTS","AMOUNT","RATE_DAILY","PERIOD"]
[366879935,1750543832634,-150.0,0.00022413,4]
[366879936,1750543832644,-150.0,0.00022418,4]
[366879937,1750543832654,-150.0,0.0002242,4]
[366879938,1750543832663,-150.0,0.00022441,4]
[366879939,1750543832673,-150.0,0.00022445,4]
[366879940,1750543832683,-156.1,0.00022447,2]
[366879941,1750543832693,-156.1,0.00022458,2]
[366879942,1750543832705,-150.0,0.00022459,4]
[366879943,1750543832716,-156.1,0.00022469,2]
[366879944,1750543832726,-156.1,0.0002248,2]
[366879945,1750543832736,-150.0,0.00022483,4]
[366879946,1750543832745,-150.0,0.00022485,4]
[366879947,1750543832755,-156.1,0.00022492,2]
[366879948,1750543832765,-150.0,0.00022501,4]
[366879949,1750543832776,-156.1,0.00022503,2]
[366879950,1750543832786,-150.0,0.00022509,4]
[366879951,1750543832795,-156.1,0.00022514,2]
[366879952,1750543832805,-150.0,0.00022519,4]
[366879953,1750543832814,-446.56718696,0.00022521,7]
[366879954,1750543832826,-150.0,0.00022525,4]
[366879955,1750543832836,-156.1,0.00022525,2]
[366879956,1750543832846,-156.1,0.00022537,2]
[366879957,1750543832856,-150.0,0.00022537,4]
[366879958,1750543832866,-150.0,0.00022543,4]
[366879959,1750543832876,-150.0,0.00022546,4]
[366879960,1750543832886,-150.0,0.00022546,4]
[366879961,1750543832897,-156.1,0.00022548,2]
[366879962,1750543832908,-156.1,0.00022559,2]
[366879963,1750543832918,-150.0,0.00022564,4]
[366879964,1750543832928,-150.0,0.00022578,4]
[366879965,1750543832938,-150.0,0.00022578,4]
[366879966,1750543832948,-150.0,0.00022585,4]
[366879967,1750543832959,-150.0,0.00022604,4]
[366879968,1750543832968,-150.0,0.00022609,4]
[366879969,1750543832977,-200.0,0.00022617,2]
[366879970,1750543832987,-150.0,0.00022626,4]
[366879971,1750543832997,-160.01,0.00022629,2]
[366879972,1750543833007,-150.0,0.00022644,4]
[366879973,1750543833016,-150.0,0.00022646,4]
[366879974,1750543833026,-150.0,0.0002266,4]
[366879975,1750543833036,-150.0,0.0002266,4]
[366879976,1750543833045,-150.0,0.00022668,4]
[366879977,1750543833055,-150.0,0.00022672,4]
[366879978,1750543833065,-150.0,0.00022684,4]
[366879979,1750543833074,-1957.856,0.00022693,2]
[366879980,1750543833084,-207.4,0.00022693,2]
[366879981,1750543833093,-150.0,0.00022695,4]
[366879982,1750543833103,-150.0,0.0002271,4]
[366879983,1750543833113,-150.0,0.00022714,4]
[366879984,1750543833122,-150.0,0.00022723,4]
[366879985,1750543833131,-250.0,0.00022726,2]
[366879986,1750543833141,-446.56718696,0.00022728,7]
[366879987,1750543833151,-150.0,0.00022736,4]
[366879988,1750543833162,-150.0,0.00022736,4]
[366879989,1750543833172,-2030.296672,0.00022748,2]
[366879990,1750543833181,-150.0,0.00022752,4]
[366879991,1750543833192,-150.0,0.00022763,4]
[366879992,1750543833203,-1080.0,0.00022778,2]
[366879993,1750543833212,-150.0,0.00022783,4]
[366879994,1750543833222,-150.0,0.00022783,4]
[366879995,1750543833233,-150.0,0.00022793,4]
[366879996,1750543833243,-150.0,0.00022799,4]
[366879997,1750543833253,-150.0,0.00022803,4]
[366879998,1750543833263,-2105.41764886,0.00022803,2]
[366879999,1750543833273,-150.0,0.00022835,4]
[366880000,1750543833283,-150.0,0.00022842,4]
[366880001,1750543833293,-150.0,0.00022851,4]
[366880002,1750543833303,-2183.31810187,0.00022858,2]
[366880003,1750543833313,-150.0,0.00022862,4]
[366880004,1750543833323,-150.0,0.00022871,4]
[366880005,1750543833333,-150.0,0.00022877,4]
[366880006,1750543833342,-150.0,0.00022882,4]
[366880007,1750543833352,-150.0,0.00022906,4]
[366880008,1750543833362,-2264.10087164,0.00022913,2]
[366880009,1750543833373,-150.0,0.00022919,4]
[366880010,1750543833383,-150.0,0.0002292,4]
[366880011,1750543833393,-150.0,0.00022922,4]
[366880012,1750543833403,-150.0,0.00022925,4]
[366880013,1750543833413,-150.0,0.00022925,4]
[366880014,1750543833424,-446.56718696,0.00022934,8]
[366880015,1750543833433,-150.0,0.0002296,4]
[366880016,1750543833443,-150.0,0.00022962,4]
[366880017,1750543833454,-2347.87260389,0.00022968,2]
[366880018,1750543833464,-500.0,0.00022986,2]
[366880019,1750543833474,-150.0,0.00022988,4]
[366880020,1750543833485,-150.0,0.00022988,4]
[366880021,1750543833496,-150.0,0.00022988,4]
[366880022,1750543833506,-150.0,0.00022988,4]
[366880023,1750543833516,-150.0,0.00022988,4]
[366880024,1750543833525,-150.0,0.00022988,4]
[366880025,1750543833535,-150.0,0.00022988,4]
[366880026,1750543833545,-150.0,0.00023001,4]
[366880027,1750543833555,-150.0,0.00023002,4]
[366880028,1750543833566,-305.05,0.0002302,2]
[366880029,1750543833576,-200.0,0.00023023,7]
[366880030,1750543833587,-2434.74389024,0.00023023,2]
[366880031,1750543833597,-150.0,0.00023029,4]
[366880032,1750543833607,-150.0,0.00023041,4]
[366880033,1750543833618,-150.0,0.00023044,4]
[366880034,1750543833627,-150.0,0.00023047,4]
[366880035,1750543833638,-150.0,0.00023051,4]
[366880036,1750543833648,-150.0,0.00023057,4]
[366880037,1750543833658,-151.0,0.0002307,2]
[366880038,1750543833669,-151.0,0.0002307,2]
[366880039,1750543833680,-300.0,0.0002307,2]
[366880040,1750543833692,-300.0,0.0002307,2]
[366880041,1750543833703,-300.0,0.0002307,2]
[366880042,1750543833713,-300.0,0.0002307,2]
[366880043,1750543833723,-300.0,0.0002307,2]
[366880044,1750543833733,-300.0,0.0002307,2]
[366880045,1750543833743,-300.0,0.0002307,2]
[366880046,1750543833753,-300.0,0.0002307,2]
[366880047,1750543833764,-300.0,0.0002307,2]
[366880048,1750543833774,-668.65185757,0.0002307,2]
[366880049,1750543833784,-300.0,0.0002307,2]
[366880050,1750543833794,-300.0,0.0002307,2]
[366880051,1750543833803,-300.0,0.0002307,2]
[366880052,1750543833813,-300.0,0.0002307,2]
[366880053,1750543833824,-300.0,0.0002307,2]
[366880054,1750543833835,-300.0,0.0002307,2]
[366880055,1750543833845,-300.0,0.0002307,2]
[366880056,1750543833854,-177.59,0.00023075,2]
[366880057,1750543833865,-2524.82941417,0.00023078,2]
[366880058,1750543833875,-150.0,0.00023081,4]
[366880059,1750543833885,-2534.48,0.00023084,2]
[366880060,1750543833894,-150.0,0.00023086,4]
[366880061,1750543833905,-150.0,0.00023114,4]
[366880062,1750543833915,-150.0,0.00023114,4]
[366880063,1750543833925,-150.0,0.00023121,4]
[366880064,1750543833935,-150.0,0.00023125,4]
[366880065,1750543833945,-151.0,0.00023125,2]
[366880066,1750543833956,-150.0,0.00023127,4]
[366880067,1750543833966,-2618.2481025,0.00023133,2]
[366880068,1750543833976,-446.56718696,0.00023141,8]
[366880069,1750543833985,-150.0,0.00023152,4]
[366880070,1750543833995,-150.0,0.00023152,4]
[366880071,1750543834005,-23900.0,0.00023157,2]
[366880072,1750543834016,-1000.0,0.00023157,2]
[366880073,1750543834025,-150.0,0.0002316,4]
[366880074,1750543834035,-150.0,0.00023169,4]
[366880075,1750543834045,-150.0,0.00023178,4]
[366880076,1750543834055,-151.0,0.0002318,2]
[366880077,1750543834065,-2715.12328229,0.00023188,2]
[366880078,1750543834075,-150.0,0.00023193,4]
[366880079,1750543834085,-150.0,0.000232,4]
[366880080,1750543834095,-150.0,0.00023211,4]
[366880081,1750543834105,-150.0,0.00023223,4]
[366880082,1750543834116,-151.0,0.00023235,2]
[366880083,1750543834126,-150.0,0.0002324,4]
[366880084,1750543834136,-150.0,0.00023241,4]
[366880085,1750543834421,-2815.58284374,0.00023243,2]
[366880086,1750543834438,-150.0,0.00023253,4]
[366880087,1750543834448,-150.0,0.00023262,4]
[366880088,1750543834459,-150.0,0.00023275,4]
[366880089,1750543834470,-150.0,0.00023279,4]
[366880090,1750543834480,-301.69346504,0.0002329,2]
[366880091,1750543834491,-150.0,0.00023294,4]
[366880092,1750543834502,-254.9,0.00023298,2]
[366880093,1750543834512,-302.09,0.00023298,2]
[366880094,1750543834522,-254.77,0.00023298,2]
[366880095,1750543834532,-2919.75940895,0.00023298,2]
[366880096,1750543834542,-150.0,0.00023304,4]
[366880097,1750543834552,-150.0,0.00023304,4]
[366880098,1750543834561,-150.0,0.00023319,4]
[366880099,1750543834573,-168.0,0.00023323,2]
[366880100,1750543834583,-150.0,0.0002333,4]
[366880101,1750543834593,-150.0,0.00023336,4]
[366880102,1750543834603,-446.56718696,0.00023348,9]
[366880103,1750543834613,-3027.79050709,0.00023353,2]
[366880104,1750543834624,-150.0,0.00023359,4]
[366880105,1750543834633,-150.0,0.00023367,4]
[366880106,1750543834643,-150.0,0.00023378,4]
[366880107,1750543834653,-150.0,0.00023399,4]
[366880108,1750543834663,-150.0,0.00023399,4]
[366880109,1750543834673,-150.0,0.00023399,4]
[366880110,1750543834683,-150.0,0.00023399,4]
[366880111,1750543834693,-150.0,0.00023399,4]
[366880112,1750543834703,-1415.90330999,0.00023408,2]
[366880113,1750543834713,-150.0,0.0002342,4]
[366880114,1750543834723,-254.2,0.00023422,2]
[366880115,1750543834733,-249.17,0.00023422,2]
[366880116,1750543834743,-150.0,0.0002343,4]
[366880117,1750543834753,-150.0,0.00023438,4]
[366880118,1750543834763,-202.0,0.00023451,8]
[366880119,1750543834773,-150.0,0.00023461,4]
[366880120,1750543834783,-150.0,0.00023467,4]
[366880121,1750543834794,-150.0,0.00023478,4]
[366880122,1750543834804,-150.0,0.00023493,4]
[366880123,1750543834814,-150.0,0.00023493,4]
[366880124,1750543834825,-150.0,0.00023503,4]
[366880125,1750543834836,-150.0,0.00023518,4]
[366880126,1750543834845,-150.0,0.00023522,4]
[366880127,1750543834855,-150.0,0.00023535,4]
[366880128,1750543834865,-150.0,0.00023545,4]
[366880129,1750543834875,-301.96,0.00023546,2]
[366880130,1750543834884,-302.27,0.00023546,2]
[366880131,1750543834895,-446.56718696,0.00023555,9]
[366880132,1750543834905,-150.0,0.00023557,4]
[366880133,1750543834914,-150.0,0.00023558,4]
[366880134,1750543834924,-150.0,0.00023575,4]
[366880135,1750543834933,-150.0,0.00023586,4]
[366880136,1750543834943,-164.28,0.00023594,2]
[366880137,1750543834954,-150.0,0.00023597,4]
[366880138,1750543834964,-1161.0,0.00023598,2]
[366880139,1750543834974,-7023.82855846,0.00023598,2]
[366880140,1750543835632,-111.17144154,0.00023598,2]
[366880141,1750543835642,-156.0,0.00023598,2]
[366880142,1750543835652,-885.0,0.00023598,2]
[366880143,1750543835662,-51.75572347,0.00023604,4]
[366880144,1750543835726,-98.24427653,0.00023604,4]
[366880145,1750543835737,-150.0,0.0002362,4]
[366880146,1750543835748,-150.0,0.00023628,4]
[366880147,1750543835758,-150.0,0.00023637,4]
[366880148,1750543835768,-150.0,0.00023645,4]
[366880149,1750543835777,-150.0,0.00023645,4]
[366880150,1750543835787,-150.0,0.0002367,4]
[366880151,1750543835797,-150.0,0.00023672,4]
[366880152,1750543835807,-150.0,0.00023677,4]
[366880153,1750543835817,-150.0,0.00023683,4]
[366880154,1750543835831,-150.0,0.00023683,4]
[366880155,1750543835840,-150.0,0.00023712,4]
[366880156,1750543835849,-150.0,0.00023716,4]
[366880157,1750543835859,-79.48278247,0.00023741,4]
[366880158,1750543835871,-70.51721753,0.00023741,4]
[366880159,1750543835881,-150.0,0.00023746,4]
[366880160,1750543835890,-150.0,0.0002375,4]
[366880161,1750543835900,-75.39662289,0.00023753,4]
[366880162,1750543835929,-74.60337711,0.00023753,4]
[366880163,1750543835939,-150.0,0.00023756,4]
[366880164,1750543835948,-446.56718696,0.00023762,9]
[366880165,1750543835964,-150.0,0.00023768,4]
[366880166,1750543835974,-150.0,0.00023795,4]
[366880167,1750543835983,-6.95943593,0.00023796,4]
[366880168,1750543836014,-143.04056407,0.00023796,4]
[366880169,1750543836023,-163.58,0.00023806,2]
[366880170,1750543836033,-163.58,0.00023806,2]
[366880171,1750543836043,-9.79943593,0.00023806,2]
[366880193,1750543838279,-408.73595119,0.00023598,2]
[366880194,1750543838292,-3686.26404881,0.00023598,2]
[366880195,1750543838302,-153.78056407,0.00023806,2]
[366880196,1750543838312,-328.58,0.00023808,2]
[366880197,1750543838321,-300.48,0.00023808,2]
[366880198,1750543838331,-84.94934935,0.00023808,2]
[366880199,1750543838342,-65.05065065,0.00023808,2]
[366880200,1750543838352,-150.0,0.00023809,4]
[366880201,1750543838361,-150.0,0.00023809,4]
[366880202,1750543838371,-150.0,0.00023809,4]
[366880203,1750543838380,-142.32558935,0.00023809,4]
[366880256,1750543839885,-7.67441065,0.00023809,4]
[366880257,1750543839895,-150.0,0.00023809,4]
[366880258,1750543839906,-150.0,0.00023809,4]
[366880259,1750543839916,-150.0,0.00023809,4]
[366880260,1750543839925,-150.01247486,0.00023825,2]
[366880261,1750543839935,-272.3857,0.00023825,2]
[366880262,1750543839944,-254.89,0.00023836,2]
[366880263,1750543839953,-150.0,0.00023836,4]
[366880264,1750543839964,-150.0,0.00023837,4]
[366880265,1750543839973,-6292.69850617,0.0002384,2]
[366880266,1750543839983,-150.01247482,0.0002387,2]
[366880267,1750543839992,-150.0,0.00023872,4]
[366880268,1750543840002,-150.0,0.00023872,4]
[366880269,1750543840012,-150.0,0.00023875,4]
[366880270,1750543840021,-150.0,0.00023878,4]
[366880271,1750543840031,-150.0,0.00023879,4]
[366880272,1750543840040,-150.0,0.00023891,4]
[366880273,1750543840050,-1680.0,0.00023911,2]
[366880274,1750543840059,-150.0,0.00023915,4]
[366880275,1750543840069,-150.01247482,0.00023916,2]
[366880276,1750543840078,-1080.0,0.00023917,2]
[366880277,1750543840087,-150.0,0.0002392,4]
[366880278,1750543840097,-207.80001926,0.00023924,2]
[366880279,1750543840201,-6084.89848684,0.00023924,2]
[366880280,1750543840212,-150.0,0.00023926,2]
[366880281,1750543840222,-150.0,0.00023926,2]
[366880282,1750543840231,-946.0,0.00023926,2]
[366880283,1750543840241,-3335.0,0.00023926,2]
[366880284,1750543840251,-803.0,0.00023926,2]
[366880285,1750543840261,-638.0,0.00023926,2]
[366880286,1750543840270,-2005.0,0.00023926,2]
[366880287,1750543840280,-928.0,0.00023926,2]
[366880288,1750543840289,-559.0,0.00023926,2]
[366880289,1750543840299,-1394.418,0.00023926,2]
[366880290,1750543840309,-150.0,0.00023926,4]
[366880291,1750543840319,-150.0,0.00023935,4]
[366880292,1750543840328,-150.0,0.00023946,4]
[366880293,1750543840338,-150.0,0.00023955,4]
[366880294,1750543840348,-150.01247482,0.00023961,2]
[366880295,1750543840357,-150.0,0.00023962,4]
[366880296,1750543840367,-446.56718696,0.00023969,10]
[366880297,1750543840376,-150.0,0.00023995,4]
[366880298,1750543840386,-150.0,0.00023999,4]
[366880299,1750543840395,-282.07,0.00024003,2]
[366880300,1750543840405,-150.0,0.00024004,4]
[366880301,1750543840416,-6292.6985061,0.00024009,2]
[366880302,1750543840426,-150.0,0.00024014,4]
[366880303,1750543840436,-150.0,0.00024014,4]
[366880304,1750543840445,-150.0,0.00024034,4]
[366880305,1750543840456,-150.0,0.00024046,4]
[366880307,1750543840466,-150.0,0.00024062,4]
[366880310,1750543840483,-150.0,0.00024062,4]
[366880312,1750543840493,-215.0738,0.00024062,2]
[366880314,1750543840503,-150.0,0.00024074,4]
[366880315,1750543840513,-150.0,0.00024083,4]
[366880316,1750543840523,-150.0,0.00024087,4]
[366880317,1750543840533,-6292.6985061,0.00024093,2]
[366880318,1750543840542,-150.0,0.00024102,4]
[366880319,1750543840552,-300.0,0.00024109,2]
[366880320,1750543840562,-500.0,0.00024109,2]
[366880321,1750543840572,-455.32,0.0002411,2]
[366880322,1750543840581,-173.07,0.0002411,2]
[366880323,1750543840591,-150.0,0.00024114,4]
[366880324,1750543840601,-669.83869099,0.00024122,2]
[366880325,1750543840611,-150.0,0.00024125,4]
[366880326,1750543840621,-150.0,0.00024129,4]
[366880327,1750543840631,-150.0,0.00024138,4]
[366880329,1750543840640,-150.0,0.00024138,4]
[366880330,1750543840649,-736.803007,0.00024148,4]
[366880331,1750543840660,-150.0,0.00024151,4]
[366880332,1750543840669,-150.0,0.00024153,4]
[366880333,1750543840681,-150.0,0.00024171,4]
[366880334,1750543840698,-446.56718696,0.00024176,10]
[366880335,1750543840708,-6292.6985061,0.00024178,2]
[366880336,1750543840718,-150.0,0.00024188,4]
[366880337,1750543840728,-150.0,0.00024193,4]
[366880338,1750543840738,-150.0,0.00024213,4]
[366880339,1750543840748,-150.0,0.00024219,2]
[366880340,1750543840758,-150.0,0.0002422,4]
[366880341,1750543840767,-150.0,0.0002422,4]
[366880342,1750543840777,-150.0,0.00024233,4]
[366880343,1750543840787,-150.0,0.00024246,2]
[366880344,1750543840797,-150.0,0.00024251,4]
[366880345,1750543840807,-150.0,0.00024251,4]
[366880346,1750543840817,-150.0,0.00024254,4]
[366880347,1750543840833,-150.0,0.00024261,4]
[366880348,1750543840843,-6292.6985061,0.00024262,2]
[366880349,1750543840853,-150.0,0.00024273,4]
[366880350,1750543840863,-200.0,0.00024274,2]
[366880351,1750543840873,-150.0,0.00024278,4]
[366880352,1750543840883,-150.0,0.00024288,4]
[366880353,1750543840893,-150.0,0.00024296,4]
[366880354,1750543840903,-150.0,0.00024312,4]
[366880355,1750543840913,-150.0,0.00024314,4]
[366880356,1750543840923,-150.0,0.00024338,4]
[366880357,1750543840933,-6292.6985061,0.00024347,2]
[366880358,1750543840942,-2063.819,0.00024352,2]
[366880359,1750543840951,-150.0,0.00024352,4]
[366880360,1750543840963,-150.0,0.00024356,4]
[366880361,1750543840973,-168.0,0.00024368,2]
[366880362,1750543840982,-150.0,0.00024378,4]
[366880363,1750543840992,-150.0,0.0002438,4]
[366880364,1750543841002,-446.56718696,0.00024383,11]
[366880365,1750543841012,-150.0,0.00024384,4]
[366880366,1750543841022,-150.0,0.00024392,4]
[366880367,1750543841032,-1366.67,0.000244,2]
[366880368,1750543841041,-13475.8114,0.000244,2]
[366880369,1750543841052,-500.0,0.000244,2]
[366880370,1750543841061,-1351.0,0.000244,2]
[366880371,1750543841071,-300.0,0.000244,8]
[366880372,1750543841081,-150.0,0.00024421,4]
[366880373,1750543841091,-150.0,0.00024425,4]
[366880374,1750543841101,-6292.6985061,0.00024431,2]
[366880375,1750543841111,-150.0,0.00024432,4]
[366880376,1750543841121,-156.587,0.00024439,2]
[366880377,1750543841130,-693.3919763,0.00024439,2]
[366880378,1750543841140,-150.0,0.00024441,4]
[366880379,1750543841149,-150.0,0.00024441,4]
[366880380,1750543841159,-200.0,0.00024444,2]
[366880381,1750543841168,-150.0,0.00024454,4]
[366880382,1750543841178,-150.0,0.00024463,4]
[366880383,1750543841188,-150.0,0.00024471,4]
[366880384,1750543841197,-222.34550248,0.00024478,2]
[366880385,1750543841207,-1000.0,0.00024484,2]
[366880386,1750543841216,-561.20185599,0.00024485,4]
[366880387,1750543841226,-150.0,0.00024493,4]
[366880388,1750543841235,-700.0,0.000245,8]
[366880389,1750543841244,-150.0,0.00024504,4]
[366880390,1750543841254,-150.0,0.00024505,4]
[366880391,1750543841264,-150.0,0.00024507,4]
[366880392,1750543841273,-150.0,0.00024511,4]
[366880393,1750543841283,-6292.6985061,0.00024516,2]
[366880394,1750543841292,-461.95,0.00024521,2]
[366880395,1750543841302,-797.81,0.00024521,2]
[366880396,1750543841311,-461.95,0.00024521,2]
[366880397,1750543841320,-461.95,0.00024521,2]
[366880398,1750543841330,-798.09,0.00024521,2]
[366880399,1750543841339,-798.09,0.00024521,2]
[366880400,1750543841349,-729.24,0.00024521,2]
[366880401,1750543841358,-152.92,0.00024521,2]
[366880402,1750543841368,-331.27882326,0.0002453,2]
[366880403,1750543841377,-445.66142973,0.00024533,2]
[366880404,1750543841387,-445.66142973,0.0002454,2]
[366880405,1750543841397,-150.0,0.00024547,4]
[366880406,1750543841407,-363.54256173,0.00024548,2]
[366880407,1750543841420,-82.118868,0.00024548,2]
[366880408,1750543841430,-471.05680335,0.0002455,2]
[366880409,1750543841442,-27.82632208,0.0002455,2]
[366880410,1750543841452,-1833.6510742,0.0002455,2]
[366880411,1750543841464,-274.70190444,0.0002455,2]
[366880412,1750543841474,-182.34809555,0.0002455,2]
[366880413,1750543841486,-4.77788876,0.0002455,2]
[366880414,1750543841495,-448.83517702,0.0002455,2]
[366880415,1750543841504,-2242.34133428,0.0002455,2]
[366880416,1750543841514,-157.71812103,0.0002455,2]
[366880417,1750543841523,-146.32747891,0.0002455,2]
[366880418,1750543841563,-238.54227061,0.0002455,2]
[366880419,1750543841574,-104.23533923,0.0002455,2]
[366880420,1750543841663,-1860.66142247,0.0002455,2]
[366880421,1750543841698,-48.97474198,0.0002455,2]
[366880422,1750543841709,-451.02525802,0.0002455,2]
[366880440,1750543844486,-150.01247482,0.00024006,2]
[366880441,1750543844496,-4548.97474198,0.0002455,2]
[366880442,1750543844506,-150.0,0.00024551,4]
[366880443,1750543844516,-150.0,0.00024553,2]
[366880444,1750543844526,-445.66142973,0.00024555,2]
[366880445,1750543844536,-168.0,0.00024555,2]
[366880446,1750543844546,-150.0,0.00024562,4]
[366880447,1750543844555,-445.66142973,0.00024563,2]
[366880448,1750543844565,-150.0,0.00024567,4]
[366880449,1750543844575,-445.66142973,0.0002457,2]
[366880450,1750543844585,-445.66142973,0.00024578,2]
[366880451,1750543844595,-445.66142973,0.00024585,2]
[366880452,1750543844605,-270.23573366,0.00024588,2]
[366880453,1750543844617,-150.0,0.00024588,4]
[366880454,1750543844628,-446.56718696,0.0002459,11]
[366880455,1750543844637,-4214.97763682,0.0002459,2]
[366880475,1750543846773,-488.19236318,0.0002459,2]
[366880476,1750543846783,-22.25763732,0.0002459,4]
[366880479,1750543871717,203.0,0.00019233,2]
[366880480,1750544010716,250.0,0.00015,2]
[366880514,1750544495473,279.79274611,0.00020002,4]
[366880515,1750544497768,279.79274611,0.00020002,4]
[366880516,1750544502272,284.53608247,0.00020002,4]
[366880517,1750544505097,191.75257732,0.00020002,4]
[366880518,1750544508108,289.23076923,0.00020002,4]
[366880519,1750544510879,194.92385787,0.00020002,4]
[366880520,1750544513506,280.51174345,0.00020002,4]
[366880521,1750544561481,258.1481565,0.00020002,3]
[366880522,1750544563615,279.79274611,0.00020002,3]
[366880523,1750544566705,281.44329897,0.00020002,3]
[366880524,1750544568797,283.07692308,0.00020002,3]
[366880527,1750544717143,3001.0368305,0.000245,120]
[366880533,1750544780644,157.3,0.00013699,2]
[366880659,1750545032026,-295.43622355,0.00020502,5]
[366880660,1750545032037,-60.42377645,0.00020502,5]
[366880661,1750545032339,-259.78347744,0.00020502,5]
[366880662,1750545032348,-318.55670103,0.00020502,5]
[366880663,1750545032358,-316.92307692,0.00020502,5]
[366880664,1750545032368,-241.69688679,0.00020902,2]
[366880665,1750545032377,-172.64063342,0.00021002,3]
[366880666,1750545032386,-1200.0,0.00021448,2]
[366880667,1750545032396,-300.01,0.00021449,2]
[366880668,1750545032405,-305.63,0.00021449,2]
[366880669,1750545032415,-302.41,0.00021449,2]
[366880670,1750545032424,-305.97,0.00021449,2]
[366880671,1750545032434,-304.11,0.00021449,2]
[366880672,1750545032443,-300.64,0.00021449,2]
[366880673,1750545032453,-305.37,0.00021449,2]
[366880674,1750545032463,-302.73,0.00021449,2]
[366880675,1750545032473,-304.46,0.0002145,2]
[366880677,1750545032483,-300.35,0.0002145,2]
[366880680,1750545032492,-305.76,0.0002145,2]
[366880682,1750545032502,-250.51,0.0002145,2]
[366880683,1750545032515,-303.89,0.0002145,2]
[366880684,1750545032525,-247.86,0.0002145,2]
[366880685,1750545032535,-249.52,0.0002145,2]
[366880686,1750545032545,-303.06,0.0002145,2]
[366880687,1750545032554,-251.91,0.0002145,2]
[366880688,1750545032564,-249.3,0.0002145,2]
[366880689,1750545032574,-302.1,0.0002145,2]
[366880690,1750545032584,-254.38,0.0002145,2]
[366880691,1750545032594,-253.95,0.0002145,2]
[366880692,1750545032603,-304.23,0.0002145,2]
[366880693,1750545032614,-246.57,0.0002145,2]
[366880694,1750545032623,-252.57,0.0002145,2]
[366880695,1750545032634,-304.13,0.0002145,2]
[366880696,1750545032644,-179.81162553,0.0002145,2]
[366880697,1750545032682,-71.76837447,0.0002145,2]
[366880698,1750545032691,-254.85,0.0002145,2]
[366880699,1750545032700,-305.69,0.0002145,2]
[366880700,1750545032710,-304.55,0.0002145,2]
[366880701,1750545032719,-253.37,0.0002145,2]
[366880702,1750545032729,-300.45,0.0002145,2]
[366880703,1750545032738,-250.08,0.0002145,2]
[366880704,1750545032750,-254.72,0.0002145,2]
[366880705,1750545032760,-304.92,0.0002145,2]
[366880706,1750545032769,-247.32,0.0002145,2]
[366880707,1750545032779,-246.27,0.0002145,2]
[366880708,1750545032789,-304.83,0.0002145,2]
[366880709,1750545032799,-253.24,0.0002145,2]
[366880710,1750545032809,-252.64,0.0002145,2]
[366880711,1750545032818,-304.42,0.0002145,2]
[366880712,1750545032829,-245.19,0.0002145,2]
[366880713,1750545032838,-248.05,0.0002145,2]
[366880714,1750545032848,-301.58,0.0002145,2]
[366880715,1750545032858,-251.62,0.0002145,2]
[366880716,1750545032868,-250.35,0.0002145,2]
[366880717,1750545032878,-300.49,0.0002145,2]
[366880718,1750545032888,-247.38,0.0002145,2]
[366880719,1750545032898,-246.93,0.0002145,2]
[366880720,1750545032908,-300.46,0.0002145,2]